[Event "Turkish Youth Championships 2023"]
[Site "Samsun"]
[Date "2023.05.22"]
[Round "5.5"]
[White "Ozgun, Yigit Deniz"]
[Black "Tarlabasi, Emirhan"]
[Result "1/2-1/2"]
[WhiteElo "1747"]
[BlackElo "2300"]
[Annotator "TA"]
[PlyCount "116"]
[EventDate "2023.05.19"]
[EventType "swiss"]
[EventCountry "TUR"]
[TimeControl "5400+30"]

{[%evp 9,116,0,0,-12,20,19,15,0,0,0,0,18,47,46,47,45,46,36,23,31,29,34,31,26,73,68,87,25,57,45,33,30,35,22,10,-4,-14,-2,8,8,0,0,0,0,0,-44,-5,-6,-6,-10,0,0,0,-30,-27,-55,-6,-8,-8,-9,-26,-38,-21,-29,-33,-31,-37,-58,-68,-75,-24,-25,-29,-19,-8,-43,-45,-77,-25,-33,-19,-232,0,0,0,0,0,0,0,0,0,0,0,0,0,0,0,0,0,0,0,0,0,0,0,0,0,0,0]} 1. d4 {[%emt 0:01:00]} d5 {[%emt 0:01:00]} 2. Nc3 {[%emt 0:00:30]} Nf6 {[%emt 0:00:30][%cal Bg8f6,Bf6e4,Be4g3][%mdl 32]} 3. Bf4 {[%emt 0:00:30]} e6 {[%emt 0:00:30]} 4. e3 {[%emt 0:00:30]} a6 {[%emt 0:00:30]} 5. g4 {[%emt 0:00:30]} Bb4 {[%emt 0:00:30]} 6. Nge2 {[%emt 0:01:30] D00: 1 d4 d5: Unusual lines.} Ne4 {[%emt 0:21:30][%cal Oe6e5] Strongly threatening ...e5!} 7. a3 {[%emt 0:32:30]} Qh4 {[%emt 0:02:30][%csl Ge4][%cal Rh4f2]} 8. Bg3 {[%emt 0:03:30]} Nxg3 {[%emt 0:01:30]} 9. fxg3 {[%emt 0:00:30]} Bxc3+ {[%emt 0:01:30]} 10. Nxc3 {[%emt 0:00:30]} Qg5 {[%emt 0:01:30]} 11. Qf3 {[%emt 0:01:30] [#]} h5 $146 {[%emt 0:05:30]} ({Predecessor:} 11... O-O 12. Bd3 e5 13. Nxd5 Nc6 14. h3 exd4 15. O-O Ne5 16. Qf4 Qxf4 17. exf4 Nxd3 18. Nxc7 {1-0 Liu,Y (2303)-Rodgers,J (2034) Oceania zt 3.6 2023 (3)}) 12. gxh5 {[%emt 0:02:30]} Qxh5 {[%emt 0:00:30]} 13. Qf4 {[%emt 0:00:30]} (13. Qxh5 {simplifies} Rxh5 14. h4 Rh8 15. g4) 13... Nd7 {[%emt 0:06:30]} 14. Be2 {[%emt 0:03:30]} ({Don't play} 14. Qxc7 Qf3 15. Rg1 Qxe3+ 16. Ne2 Rxh2 $17) 14... Qh6 {[%emt 0:04:30]} 15. O-O-O {[%emt 0:01:30]} c5 {[%emt 0:05:30]} 16. dxc5 {[%emt 0:03:30]} Nxc5 {[%emt 0:01:30]} (16... Qxf4 $1 $11 17. gxf4 (17. exf4 Nxc5 18. f5 Ne4 $11) 17... Nxc5) 17. Qd4 $16 {[%emt 0:01:30] White has more active pieces.} b6 {[%emt 0:10:30]} 18. Kb1 {[%emt 0:00:30]} (18. Rhf1 $16) 18... O-O {[%emt 0:02:30]} 19. h4 {[%emt 0:02:30]} Bb7 {[%emt 0:02:30]} 20. Bf3 {[%emt 0:03:30]} Rfe8 {[%emt 0:01:30]} 21. Qf4 {[%emt 0:04:30]} Rad8 {[%emt 0:02:30]} 22. g4 {[%emt 0:00:30] Hoping for g5.} Qxf4 {[%emt 0:17:09]} 23. exf4 {[%emt 0:00:30]} Ne4 {[%emt 0:00:30]} (23... d4 $5 {[%cal Rb7f3]} 24. Bxb7 dxc3 $11) 24. Nxe4 {[%emt 0:04:30]} dxe4 {[%emt 0:00:30]} 25. Bg2 {[%emt 0:00:30]} f5 {[%emt 0:01:45]} 26. gxf5 {[%emt 0:00:30]} exf5 {[%emt 0:00:30]} 27. Bh3 {[%emt 0:02:30]} Bc8 {[%emt 0:02:21]} (27... g6 $5 {[%cal Rd8d1]} 28. Rxd8 Rxd8 $15) 28. Kc1 {[%emt 0:01:30]} Kf7 {[%emt 0:00:32]} 29. Bf1 {[%emt 0:00:30]} b5 {[%emt 0:03:03]} 30. Be2 {[%emt 0:00:30]} Be6 {[%emt 0:02:16]} 31. Bh5+ {[%emt 0:00:30]} g6 {[%emt 0:00:37]} 32. Be2 {[%emt 0:00:30]} Bc4 {[%emt 0:01:08]} (32... Kf6 $15 {is superior.}) 33. Bxc4+ $11 {[%emt 0:02:30]} bxc4 {[%emt 0:00:30]} 34. h5 {[%emt 0:00:00]} Rxd1+ {[%emt 0:00:47]} 35. Kxd1 {[%emt 0:00:00][%mdl 4096] Endgame KR-KR} Rd8+ {[%emt 0:00:00]} 36. Ke2 {[%emt 0:02:30]} Rb8 {[%emt 0:00:30]} 37. hxg6+ {[%emt 0:00:30]} Kxg6 {[%emt 0:00:30]} 38. Kd2 {[%emt 0:00:30]} Rxb2 {[%emt 0:00:00]} 39. Ra1 {[%emt 0:01:30] Inhibits Ra2.} Kh5 {[%emt 0:01:33]} ({Better is} 39... Rb8 $17) 40. Kc3 {[%emt 0:00:30][%csl LRb2,LRc4]} Rb8 {[%emt 0:00:44]} (40... Rb6 $5 {[%cal Rh5g4]} 41. Kd4 Kh4 $11) 41. Rg1 {[%emt 0:00:00]} Rd8 {[%emt 0:00:34]} 42. Kxc4 {[%emt 0:02:00]} Kh4 {[%emt 0:00:08]} 43. Kc3 {[%emt 0:00:30] [#]} Rd5 {[%emt 0:00:50]} ({Black should try} 43... Kh3 $1 $17) 44. Rg6 {[%emt 0:01:30]} a5 {[%emt 0:00:27] aiming for ...a4.} 45. Rg1 $2 {[%emt 0:00:30] [#]} (45. a4 $1 $11 {and White has nothing to worry.}) 45... Rd8 $2 {[%emt 0:00:34]} ({Black should play} 45... a4 $1 $19 46. Kb4 Rd4+ 47. c4 e3) 46. a4 $1 {[%emt 0:00:30] The position is equal.} e3 {[%emt 0:00:30]} 47. Re1 {[%emt 0:01:30]} Kg3 {[%emt 0:00:32]} 48. Rxe3+ {[%emt 0:00:30]} Kxf4 {[%emt 0:00:00]} 49. Re7 {[%emt 0:01:41]} Kf3 {[%emt 0:00:57]} 50. Kc4 {[%emt 0:00:32]} Rf8 {[%emt 0:00:30]} 51. Kb5 {[%emt 0:00:30]} f4 {[%emt 0:00:30]} 52. c4 {[%emt 0:00:30]} Kf2 {[%emt 0:00:30]} 53. c5 {[%emt 0:00:30][%cal Oc5c6] c6! is the strong threat.} f3 {[%emt 0:00:01]} 54. Kxa5 {[%emt 0:01:59] c6 would be deadly.} Kf1 {[%emt 0:00:30] White must now prevent ...f2.} 55. Rh7 {[%emt 0:02:08]} f2 {[%emt 0:01:00] ( -> ...Kg2)} 56. Rh2 {[%emt 0:00:09]} Ra8+ {[%emt 0:00:30]} 57. Kb5 {[%emt 0:00:30]} Rb8+ {[%emt 0:00:09]} 58. Ka6 {[%emt 0:00:43]} Ra8+ {[%emt 0:00:04] Weighted Error Value: White=0.12 (very precise) /Black=0.13 (very precise)} 1/2-1/2

[Event "Turkish Youth Championships 2023"]
[Site "Samsun"]
[Date "2023.05.22"]
[Round "5.6"]
[White "Coskun, Emre"]
[Black "Angun, Batu"]
[Result "1/2-1/2"]
[WhiteElo "1750"]
[BlackElo "2205"]
[Annotator "TA"]
[PlyCount "59"]
[EventDate "2023.05.19"]
[EventType "swiss"]
[EventCountry "TUR"]
[TimeControl "5400+30"]

{[%evp 21,59,-2,21,-12,-10,-6,0,-31,-2,-19,-4,-11,-12,-6,20,10,15,15,31,0,30,0,10,-28,0,-11,10,-4,-10,-46,-24,-45,0,-49,0,-40,0,-40,0,-43]} 1. e4 {[%emt 0:01:00]} c5 {[%emt 0:01:00]} 2. Nc3 {[%emt 0:00:30]} Nc6 {[%emt 0:00:30]} 3. g3 {[%emt 0:00:30]} g6 {[%emt 0:00:30]} 4. Bg2 {[%emt 0:00:30]} Bg7 {[%emt 0:00:30]} 5. d3 {[%emt 0:00:30][%cal Bd2d3,Bd3d4][%mdl 32]} d6 {[%emt 0:00:30]} 6. f4 {[%emt 0:00:30]} e6 {[%emt 0:00:30]} 7. Nf3 {[%emt 0:00:30]} Nge7 {[%emt 0:00:30]} 8. O-O {[%emt 0:00:30]} O-O {[%emt 0:00:30]} 9. Be3 {[%emt 0:00:30]} b6 {[%emt 0:00:30]} 10. d4 {[%emt 0:00:30]} d5 {[%emt 0:00:30]} 11. exd5 {[%emt 0:05:30]} exd5 {[%emt 0:02:30]} (11... Nf5 {feels hotter.} 12. Bf2 Ncxd4 13. Ne5 exd5 14. Nxd5 Be6) 12. Bf2 {[%emt 0:01:30] B25: Closed Sicilian: 3 g3, lines without early Be3.} (12. dxc5 $5 Bg4 13. Bf2 $11) 12... Nf5 {[%emt 0:19:30][%cal Rc5d4] [#]} 13. Nxd5 $146 {[%emt 0:15:30]} ({Predecessor:} 13. dxc5 d4 14. Ne4 Rb8 15. cxb6 Qxb6 16. Rb1 Be6 17. b3 Ne3 18. Bxe3 dxe3 19. Qe2 Nb4 {0-1 Landaw,J (2340)-Neiksans,A (2600) Titled Tuesday intern op 2nd June blitz 2015 (7)}) 13... Be6 {[%emt 0:00:30]} ({Don't take} 13... Qxd5 14. Ne5 Qd6 15. Bxc6 $16) 14. c4 {[%emt 0:00:30]} (14. Ne5 $5 {[%cal Re5c6]} Ncxd4 15. c4 $11) 14... Ncxd4 {[%emt 0:23:30]} 15. Ng5 {[%emt 0:14:30]} Rc8 {[%emt 0:01:30]} (15... Bxd5 {is interesting.} 16. Bxd5 Rc8 17. Rb1 h6) 16. Nxe6 {[%emt 0:07:30]} fxe6 {[%emt 0:00:00]} 17. Nc3 {[%emt 0:01:30]} Qc7 {[%emt 0:03:00]} 18. Qa4 {[%emt 0:03:30]} Ne7 {[%emt 0:04:30]} 19. Rae1 {[%emt 0:04:30]} Rce8 {[%emt 0:03:30][%cal Bc8e8,Be8e7,Be7f7][%mdl 32]} 20. Re4 {[%emt 0:01:30]} Nec6 {[%emt 0:04:30]} 21. Be3 {[%emt 0:09:30]} Re7 {[%emt 0:13:11]} 22. Bc1 {[%emt 0:01:30]} Ref7 {[%emt 0:01:02]} 23. Rfe1 {[%emt 0:01:30]} Kh8 {[%emt 0:02:15]} 24. Qd1 {[%emt 0:01:30]} Rd8 {[%emt 0:01:41]} 25. Bh3 {[%emt 0:00:30]} Kg8 {[%emt 0:00:16]} 26. Bg2 {[%emt 0:00:30]} Kh8 {[%emt 0:00:30]} 27. Bh3 {[%emt 0:00:30]} Kg8 {[%emt 0:00:30]} (27... Nb4 $5 {[%cal Rd4c2]} 28. Rf1 Nf5 $15) 28. Bg2 {[%emt 0:00:00]} Kh8 {[%emt 0:00:00]} 29. Bh3 {[%emt 0:00:00]} Kg8 {[%emt 0:00:00]} 30. Bg2 {[%emt 0:00:00] Weighted Error Value: White=0.15 (very precise) /Black=0.21 (precise)} 1/2-1/2

[Event "Turkish Youth Championships 2023"]
[Site "Samsun"]
[Date "2023.05.22"]
[Round "5.7"]
[White "Eroz, Enis"]
[Black "Biyiksiz, Ali Batuhan"]
[Result "1-0"]
[WhiteElo "1830"]
[BlackElo "2107"]
[Annotator "TA"]
[PlyCount "111"]
[EventDate "2023.05.19"]
[EventType "swiss"]
[EventCountry "TUR"]
[TimeControl "5400+30"]

{[%evp 12,111,27,12,10,-12,37,0,9,-11,29,12,17,0,13,1,14,8,6,-18,-24,-26,-14,-13,-10,-12,-12,-12,-2,-4,39,26,87,86,87,87,87,87,87,87,90,81,83,77,78,84,82,85,106,105,170,164,156,68,160,126,156,85,213,167,168,162,250,216,215,225,223,222,215,210,215,219,325,316,365,350,373,369,475,468,527,533,515,491,524,512,492,472,681,690,685,674,655,650,942,1016,941,903,2547,1979,29990,29986]} 1. e4 {[%emt 0:04:00]} c5 {[%emt 0:01:00]} 2. Nf3 {[%emt 0:00:30]} e6 {[%emt 0:00:30]} 3. c3 {[%emt 0:00:00]} d5 {[%emt 0:00:30]} 4. exd5 {[%emt 0:00:00]} Qxd5 {[%emt 0:00:30]} 5. Be2 {[%emt 0:00:30]} Nf6 {[%emt 0:00:30]} 6. d4 {[%emt 0:00:30]} Be7 {[%emt 0:01:30]} 7. Na3 {[%emt 0:01:30]} (7. c4 $5 {[%cal Rc4d5]} Qd8 8. Nc3 $11) 7... O-O {[%emt 0:01:30] B22: Sicilian: 2 c3.} 8. Nb5 {[%emt 0:02:30] Threatens to win with Nc7.} Na6 {[%emt 0:00:30] Dodges Nc7} (8... Qc6 $11 {was preferrable.}) 9. Be3 {[%emt 0:01:30]} cxd4 {[%emt 0:06:30] The position is equal.} 10. Qxd4 {[%emt 0:04:30]} Bc5 {[%emt 0:04:30]} 11. Qxd5 {[%emt 0:00:30]} Nxd5 {[%emt 0:00:00] [#]} 12. Bd2 $146 {[%emt 0:00:00]} ({Predecessor:} 12. Bxc5 Nxc5 13. O-O a6 14. Nbd4 Nf4 15. Bc4 b5 16. Bb3 Nfd3 17. Rab1 Bb7 18. Bc2 {1-0 Kisova,P (2145)-Kovats,B Ingrid Larsen Memorial (Women) 1991}) 12... Nac7 {[%emt 0:08:00]} 13. Nxc7 {[%emt 0:00:00]} Nxc7 {[%emt 0:00:00]} 14. O-O {[%emt 0:01:30]} f6 {[%emt 0:02:00]} 15. b4 {[%emt 0:07:30]} Be7 {[%emt 0:00:30]} 16. c4 {[%emt 0:10:30]} e5 {[%emt 0:00:30]} 17. Rfd1 {[%emt 0:04:30]} Be6 {[%emt 0:02:30]} 18. a3 {[%emt 0:00:30]} Rfd8 {[%emt 0:06:30]} 19. Be3 {[%emt 0:01:30]} Rxd1+ {[%emt 0:03:30]} 20. Rxd1 {[%emt 0:00:30]} g5 {[%emt 0:00:30]} 21. Nd2 {[%emt 0:03:30]} f5 {[%emt 0:19:30]} (21... g4 $11) 22. Nf3 $16 {[%emt 0:05:30][%csl LRe5,LRg5]} f4 {[%emt 0:00:30]} 23. Bc5 {[%emt 0:00:00]} Bxc5 {[%emt 0:01:30]} 24. bxc5 {[%emt 0:00:00]} Bg4 {[%emt 0:00:30]} 25. h3 {[%emt 0:04:30]} Bh5 {[%emt 0:00:00]} 26. Kf1 {[%emt 0:00:30] White is more active.} Ne6 {[%emt 0:00:00]} 27. Nxe5 {[%emt 0:07:30]} Bxe2+ {[%emt 0:00:30]} 28. Kxe2 {[%emt 0:00:30]} Nxc5 {[%emt 0:00:30][%mdl 4096] Endgame KRN-KRN} 29. Kf3 {[%emt 0:00:30]} Kg7 {[%emt 0:08:30]} 30. Rd5 {[%emt 0:00:30]} Rc8 {[%emt 0:01:30]} (30... b6 $16) 31. Kg4 $1 $18 {[%emt 0:01:30]} h6 {[%emt 0:06:30]} 32. h4 {[%emt 0:01:30]} (32. Kh5 $1 $16) 32... Ne4 {[%emt 0:02:30] Repels Rd6} ({Black should play} 32... gxh4 $1 $14 33. Kxf4 Rf8+ 34. Kg4 Ne4 35. Rd7+ (35. Kxh4 Rf4+ 36. Kh3 Nxf2+ 37. Kg3 Rf5 $11) 35... Kg8 36. Rxb7 (36. Kxh4 Rf4+ 37. Kh3 Nxf2+ 38. Kg3 Rf5 $14) 36... Rxf2) 33. hxg5 {[%emt 0:00:30]} hxg5 {[%emt 0:00:30] [#]} 34. Kf5 {[%emt 0:02:30]} Nf6 {[%emt 0:01:30] Wards off Rd7+. This move loses the game for Black.} (34... Nxf2 $16 35. Kxg5 Ne4+ 36. Kxf4 Nc5) 35. Rb5 {[%emt 0:01:30]} b6 {[%emt 0:01:30]} 36. Kxg5 {[%emt 0:00:30]} Rf8 {[%emt 0:08:51]} (36... Ne4+ $142 37. Kxf4 Nxf2) 37. Kxf4 {[%emt 0:04:30]} Nd5+ {[%emt 0:00:01] [#]} (37... a6 $2 38. Rb2 $18 (38. Rxb6 $2 {too greedy.} Nd5+ 39. Ke4 Nxb6 $19)) 38. Kg4 $1 {[%emt 0:00:30]} Nf6+ {[%emt 0:00:17]} 39. Kh3 {[%emt 0:00:30]} Rh8+ {[%emt 0:02:38]} 40. Kg3 {[%emt 0:00:30]} Ne4+ {[%emt 0:01:27]} 41. Kf3 {[%emt 0:00:30]} Nc3 {[%emt 0:00:57]} (41... Nc5 $142 42. Rb1 Kf6) 42. Rb3 {[%emt 0:00:30]} Rf8+ {[%emt 0:00:30]} 43. Kg4 {[%emt 0:01:30]} Ne4 {[%emt 0:01:48]} 44. f4 {[%emt 0:00:30]} Rd8 {[%emt 0:00:35]} 45. Kf5 {[%emt 0:00:30]} Nd6+ {[%emt 0:01:00]} 46. Ke6 {[%emt 0:00:30] Rd3 is the strong threat.} Ne4 {[%emt 0:00:02]} 47. Re3 {[%emt 0:00:30]} Re8+ {[%emt 0:01:04]} 48. Kd7 {[%emt 0:01:30]} Nf6+ {[%emt 0:00:30]} 49. Kd6 {[%emt 0:00:30]} Rc8 {[%emt 0:00:00]} (49... Rd8+ $142 50. Kc6 Re8) 50. Rg3+ {[%emt 0:01:30]} Kh7 {[%emt 0:00:00]} 51. Ke6 {[%emt 0:00:30]} Ne4 {[%emt 0:00:07]} 52. Re3 {[%emt 0:01:30]} Nc5+ {[%emt 0:00:28]} 53. Kf7 {[%emt 0:01:30][%cal Re3h3]} Rc7+ {[%emt 0:00:07]} 54. Kf6 {[%emt 0:00:00]} Rc8 {[%emt 0:00:36]} 55. f5 {[%emt 0:01:00]} Re8 {[%emt 0:01:56]} 56. Kf7 {[%emt 0:00:30] Weighted Error Value: White=0.10 (very precise) /Black=0.30} 1-0

[Event "Turkish Youth Championships 2023"]
[Site "Samsun"]
[Date "2023.05.22"]
[Round "5.8"]
[White "Turker, Esat Tuna"]
[Black "Temizer, Umut"]
[Result "0-1"]
[WhiteElo "1713"]
[BlackElo "1973"]
[Annotator "TA"]
[PlyCount "139"]
[EventDate "2023.05.19"]
[EventType "swiss"]
[EventCountry "TUR"]
[TimeControl "5400+30"]

{[%evp 21,139,12,27,6,22,-22,14,0,0,0,8,0,0,0,16,0,30,-26,84,85,83,70,87,37,87,77,114,0,0,-13,-24,-34,-23,-35,-30,-39,-31,-24,-7,-46,-55,-49,-41,-106,-39,-71,-89,-92,-106,-125,-77,-69,-71,-76,-72,-98,-96,-120,-119,-116,-118,-116,-65,-91,-65,-112,-111,-200,-200,-187,-196,-162,-158,-175,-170,-193,-191,-187,-182,-189,-179,-407,-403,-660,-327,-324,-327,-322,-322,-781,-379,-352,-351,-331,-335,-605,-329,-29984,-29985,-29993,-29984,-29984,-29984,-29984,-29985,-29985,-29986,-29988,-29989,-29992,-29993,-29993,-29994,-29994,-29995,-29996,-29997,-29997,-29998,-29999]} 1. d4 {[%emt 0:01:00]} d5 {[%emt 0:02:00]} 2. c4 {[%emt 0:00:00]} e6 {[%emt 0:00:30]} 3. cxd5 {[%emt 0:00:00]} exd5 {[%emt 0:00:00]} 4. Nc3 {[%emt 0:00:00]} c6 {[%emt 0:01:00]} 5. Qc2 {[%emt 0:00:00]} Nf6 {[%emt 0:02:30]} 6. Bg5 {[%emt 0:00:30]} Be7 {[%emt 0:00:00]} 7. e3 {[%emt 0:00:30]} Nbd7 {[%emt 0:00:00]} 8. Bd3 {[%emt 0:00:00]} Nh5 {[%emt 0:00:30]} 9. Bxe7 {[%emt 0:03:00]} Qxe7 {[%emt 0:00:30]} 10. Nge2 {[%emt 0:02:30]} g6 {[%emt 0:00:30]} 11. O-O {[%emt 0:10:30]} O-O {[%emt 0:00:30]} 12. Rfe1 {[%emt 0:00:30] D36: Queen's Gambit Declined: Exchange Variation: Main line (5 Bg5 c6 6 Qc2).} Ndf6 {[%emt 0:02:30]} 13. Nf4 {[%emt 0:03:30] [#]} Ng7 $146 {[%emt 0:09:30]} ({Predecessor:} 13... Qd6 14. Nxh5 Nxh5 15. Rad1 f5 16. Ne2 Bd7 17. g3 Rae8 18. Nf4 Nf6 19. Bf1 Kg7 {0-1 Shtereva,S (2095)-Velcheva,M (2317) BUL-ch (Women) 53rd 2004 (4)}) 14. a4 {[%emt 0:06:30] The position is equal.} Bf5 {[%emt 0:05:30]} 15. a5 {[%emt 0:01:30]} a6 {[%emt 0:03:30]} 16. Na4 {[%emt 0:06:30]} Rad8 {[%emt 0:04:30]} 17. Nc5 {[%emt 0:04:30]} Bc8 {[%emt 0:00:30]} 18. Qb3 {[%emt 0:03:30]} Rd6 {[%emt 0:04:30]} 19. Ra4 {[%emt 0:02:30]} (19. Rac1 $142) 19... Nd7 {[%emt 0:06:30]} (19... Ng4 $1 $11) 20. Nxb7 $16 {[%emt 0:07:30]} Bxb7 {[%emt 0:04:30]} 21. Qxb7 {[%emt 0:00:30]} Rb8 {[%emt 0:00:00]} 22. Qxa6 {[%emt 0:07:30]} (22. Qa7 $16) 22... c5 {[%emt 0:02:00]} (22... g5 $1 $14) 23. Qa7 {[%emt 0:00:00]} c4 {[%emt 0:00:00] [#]} 24. Be2 {[%emt 0:04:00]} (24. Nxd5 $1 $16 Rxd5 25. Bxc4 (25. Rxc4 Ne8 $14)) 24... Qd8 $11 {[%emt 0:04:00]} 25. Nxd5 {[%emt 0:19:18][%mdl 64] Remove Defender} Rxd5 {[%emt 0:03:30]} 26. Bxc4 {[%emt 0:00:02]} ({Much worse is} 26. Rxc4 Rxa5 27. Qc7 Qxc7 28. Rxc7 Nf6 $15) 26... Ra8 $36 {[%emt 0:02:30][%mdl 2048] Black has some pressure.} 27. Qb7 {[%emt 0:00:02]} Rdxa5 {[%emt 0:00:30]} 28. Rxa5 {[%emt 0:00:17]} Rxa5 {[%emt 0:00:30]} 29. b4 {[%emt 0:00:51]} Ra8 {[%emt 0:01:30]} 30. Rc1 {[%emt 0:02:24]} Rb8 {[%emt 0:03:30]} 31. Qd5 {[%emt 0:03:38]} Qe7 {[%emt 0:00:30]} 32. b5 {[%emt 0:02:57] [#]} (32. Bf1 $15) 32... Nf5 {[%emt 0:02:30]} (32... Nb6 $1 $17 {[%cal Rb6d5]} 33. Qc6 Ne8) 33. Qf3 {[%emt 0:00:52]} Nd6 {[%emt 0:03:30][%cal Ob8c8] Hoping for ...Rc8!} 34. Bf1 {[%emt 0:02:42]} Nxb5 {[%emt 0:01:30]} 35. Qd5 {[%emt 0:01:47]} Qe6 {[%emt 0:11:30]} (35... Nd6 $142 36. Rc7 Rb2) 36. Qxe6 $17 {[%emt 0:02:50]} fxe6 {[%emt 0:00:30]} 37. Rc6 {[%emt 0:00:00]} Kf7 {[%emt 0:03:41]} 38. g3 {[%emt 0:00:03]} Ke7 {[%emt 0:00:36]} 39. Bc4 {[%emt 0:00:57]} Nd6 {[%emt 0:00:12]} 40. Be2 {[%emt 0:00:30]} Rb2 {[%emt 0:02:12]} 41. Kf1 {[%emt 0:02:07]} Rb6 {[%emt 0:02:54]} (41... Nf6 $17 {White must now prevent ...Nde4.} 42. Rc7+ Kd8) 42. Rc7 {[%emt 0:00:43]} Rb7 {[%emt 0:00:09]} 43. Rc6 {[%emt 0:00:20]} (43. Rxb7 $15 Nxb7 44. f3) 43... Nf6 {[%emt 0:00:45]} 44. f3 {[%emt 0:01:01]} (44. Rc2 $17) 44... Kd7 $19 {[%emt 0:00:39]} 45. Ra6 {[%emt 0:01:21]} Nd5 {[%emt 0:00:10]} 46. e4 {[%emt 0:00:00]} Nb4 {[%emt 0:01:21]} 47. Ra4 {[%emt 0:00:24]} Nc6 {[%emt 0:00:30]} 48. d5 {[%emt 0:00:30]} exd5 {[%emt 0:00:30]} 49. exd5 {[%emt 0:01:07]} Ne7 {[%emt 0:01:51]} 50. Rh4 {[%emt 0:00:30]} h5 {[%emt 0:00:30]} 51. g4 $2 {[%emt 0:00:30]} (51. Rd4 {was worth a try.}) 51... Rb4 {[%emt 0:00:30]} (51... Nxd5 $2 {too greedy.} 52. gxh5 Nf5 53. Ra4 gxh5 54. f4 $19) 52. Rh3 {[%emt 0:00:30]} (52. Bd3 $142) 52... hxg4 {[%emt 0:00:30]} (52... Nxd5 $142 53. Rh4 Nf4 54. gxh5 gxh5) 53. fxg4 {[%emt 0:00:30]} Nxd5 {[%emt 0:00:13]} 54. Rh7+ {[%emt 0:00:00]} Ke6 {[%emt 0:00:13] Strongly threatening ...Rb1+.} 55. h3 $2 {[%emt 0:01:54]} (55. Bf3) 55... Nf4 {[%emt 0:00:51]} (55... Rb1+ $142 56. Kg2 Rb2) 56. Bf3 {[%emt 0:00:17]} Nf7 {[%emt 0:04:01]} 57. h4 {[%emt 0:00:41]} Rb2 {[%emt 0:00:16]} 58. h5 $2 {[%emt 0:00:44]} (58. g5) 58... Ng5 {[%emt 0:02:58][%cal Og5f3]} 59. Ra7 $2 {[%emt 0:00:30]} (59. Rb7 $19 Rd2 60. Rb6+ Ke7 61. Rb3) 59... Nxf3 {[%emt 0:00:30] Black mates.} 60. Ra6+ {[%emt 0:00:30]} Kf7 {[%emt 0:00:55]} 61. hxg6+ {[%emt 0:00:51]} Nxg6 {[%emt 0:00:30]} 62. g5 {[%emt 0:00:30]} Nxg5 {[%emt 0:00:30]} 63. Ra5 {[%emt 0:00:00]} Kf6 {[%emt 0:00:00]} 64. Ra4 {[%emt 0:00:22]} Kf5 {[%emt 0:00:18]} 65. Rc4 {[%emt 0:00:30]} Ne4 {[%emt 0:00:00]} 66. Rc8 {[%emt 0:00:08]} Nf4 {[%emt 0:00:00]} 67. Rf8+ {[%emt 0:00:43]} Kg4 {[%emt 0:00:01][%cal Rb2b1]} 68. Rg8+ {[%emt 0:00:03]} Kf3 {[%emt 0:00:16][%cal Rb2b1]} 69. Kg1 {[%emt 0:00:08]} Ng3 {[%emt 0:00:30][%cal Rf4h3]} 70. Rg4 {[%emt 0:00:46] Weighted Error Value: White=0.54/Black=0.33} 0-1